bitfinex/quotes_BTCUSD_20240826
["timestamp","ask_amount","ask_price","bid_price","bid_amount"]
[1724716044199,2.60443964,63072.0,63071.0,0.001224]
[1724716044859,2.62929324,63072.0,63071.0,0.001224]
[1724716051403,2.60443964,63072.0,63071.0,0.001224]
[1724716052067,2.71590893,63072.0,63071.0,0.001224]
[1724716053319,2.71590893,63072.0,63071.0,9.99e-05]
[1724716056438,1.42864955,63068.0,63067.0,0.0033399]
[1724716056667,2.27160053,63068.0,63067.0,0.0033399]
[1724716057063,2.34660053,63068.0,63067.0,0.0033399]
[1724716057673,2.34960053,63068.0,63067.0,0.0033399]
[1724716058706,2.35160053,63068.0,63067.0,0.0033399]
[1724716059592,2.34960053,63068.0,63067.0,0.0033399]
[1724716059999,2.27660053,63068.0,63067.0,0.0033399]
[1724716060151,2.28360053,63068.0,63067.0,0.0033399]
[1724716060569,2.60071853,63068.0,63067.0,0.0033399]
[1724716063360,2.28360053,63068.0,63067.0,0.0033399]
[1724716065088,2.16990946,63068.0,63067.0,0.0033399]
[1724716065331,2.16990946,63068.0,63067.0,0.0696399]
[1724716065332,2.28137875,63068.0,63067.0,0.0696399]
[1724716067123,2.0091774,63068.0,63067.0,0.0696399]
[1724716067350,2.28147858,63068.0,63067.0,0.0696399]
[1724716077755,2.28147858,63068.0,63067.0,0.0646399]
[1724716079331,2.28128774,63068.0,63067.0,0.0646399]
[1724716080704,2.28128774,63068.0,63067.0,0.0654639]
[1724716080918,2.28219414,63068.0,63067.0,0.0654639]
[1724716081748,2.30705215,63068.0,63067.0,0.0654639]
[1724716082610,2.57988383,63068.0,63067.0,0.000824]
[1724716082813,2.57988383,63068.0,63061.0,0.00825]
[1724716082814,0.158594,63054.0,63053.0,0.0643]
[1724716082939,0.78813184,63054.0,63053.0,0.0643]
[1724716083140,1.42250784,63054.0,63053.0,0.0643]
[1724716083766,2.01199702,63054.0,63053.0,0.0643]
[1724716084368,2.02099702,63054.0,63053.0,0.0643]
[1724716085028,2.01352476,63054.0,63053.0,0.0643]
[1724716087804,2.03838451,63054.0,63053.0,0.0643]
[1724716090611,2.19857159,63054.0,63053.0,0.0643]
[1724716091192,2.17371184,63054.0,63053.0,0.0643]
[1724716091809,2.17245045,63054.0,63053.0,0.0643]
[1724716093212,2.17245045,63054.0,63053.0,0.065124]
[1724716094412,2.17245045,63054.0,63053.0,0.145224]
[1724716094614,2.01227889,63054.0,63053.0,0.145224]
[1724716098322,2.1684569,63054.0,63053.0,0.145224]
[1724716102175,2.16988461,63054.0,63053.0,0.065124]
[1724716102969,2.43005617,63054.0,63053.0,0.065124]
[1724716106705,2.26988461,63054.0,63053.0,0.065124]
[1724716106917,2.43005617,63054.0,63053.0,0.065124]
[1724716108851,2.54905617,63054.0,63053.0,0.000824]
[1724716109017,2.70626072,63054.0,63053.0,0.000824]
[1724716111895,0.47725471,63048.0,63046.0,0.0126264]
[1724716112099,1.75546623,63048.0,63046.0,0.0126264]
[1724716112223,2.01978972,63048.0,63046.0,0.0126264]
[1724716112427,2.65422572,63048.0,63046.0,0.0126264]
[1724716113082,3.02127409,63048.0,63046.0,0.0126264]
[1724716113282,2.65422572,63048.0,63046.0,0.0126264]
[1724716113461,2.66685172,63048.0,63046.0,0.0126264]
[1724716114646,3.04790009,63048.0,63046.0,0.0126264]
[1724716114760,2.69485172,63048.0,63046.0,0.0126264]
[1724716119683,1.74620871,63045.0,63044.0,0.00563317]
[1724716119885,2.57150772,63045.0,63044.0,0.00563317]
[1724716120334,2.14199627,63045.0,63044.0,0.14623317]
[1724716120556,1.73234551,63045.0,63044.0,0.14623317]
[1724716120991,1.74634551,63045.0,63044.0,0.14623317]
[1724716122556,1.84634551,63045.0,63044.0,0.14623317]
[1724716123000,1.66601729,63045.0,63044.0,0.14623317]
[1724716123142,1.83865966,63045.0,63044.0,0.14623317]
[1724716123342,1.84965966,63045.0,63044.0,0.14123317]
[1724716127698,1.66301729,63045.0,63044.0,0.14123317]
[1724716127910,1.8500399,63045.0,63044.0,0.14123317]
[1724716130128,1.84984901,63045.0,63044.0,0.14123317]
[1724716130552,1.99217546,63045.0,63044.0,0.14123317]
[1724716131356,1.99308186,63045.0,63044.0,0.14123317]
[1724716134493,2.10843009,63045.0,63044.0,0.14123317]
[1724716134694,2.26541726,63045.0,63044.0,0.14123317]
[1724716134913,2.26603581,63045.0,63044.0,0.06293317]
[1724716135110,2.42615758,63045.0,63044.0,0.06293317]
[1724716135377,2.26603581,63045.0,63044.0,0.06293317]
[1724716135551,2.26603581,63045.0,63044.0,0.00063317]
[1724716140996,2.26522665,63045.0,63044.0,0.00063317]
[1724716141200,2.26603581,63045.0,63044.0,0.00063317]
[1724716142000,2.2909024,63045.0,63044.0,0.00063317]
[1724716143646,2.45102417,63045.0,63044.0,0.00063317]
[1724716144735,2.2909024,63045.0,63044.0,0.00063317]
[1724716146133,2.2909024,63045.0,63044.0,0.14553317]
[1724716146575,2.451086,63045.0,63044.0,0.14553317]
[1724716147693,2.2909024,63045.0,63044.0,0.14553317]
[1724716148245,2.2909024,63045.0,63044.0,0.06513317]
[1724716150303,2.28475597,63045.0,63044.0,0.06513317]
[1724716152032,2.28465934,63045.0,63044.0,0.06513317]
[1724716153712,2.01558433,63045.0,63044.0,0.14193317]
[1724716153914,2.12705362,63045.0,63044.0,0.14193317]
[1724716154960,2.13240533,63045.0,63044.0,0.14193317]
[1724716156346,2.28858334,63045.0,63044.0,0.14193317]
[1724716156716,2.28858334,63045.0,63044.0,0.06513317]
[1724716157996,2.60724405,63045.0,63044.0,0.00063317]
[1724716158971,2.60724405,63045.0,63038.0,0.08504]
[1724716158972,1.74634671,63040.0,63039.0,0.0607]
[1724716159167,1.74634671,63040.0,63038.0,0.00824]
[1724716159168,0.47732171,63039.0,63038.0,0.00824]
[1724716159392,1.55457969,63039.0,63038.0,0.00824]
[1724716159604,2.12909466,63039.0,63038.0,0.00824]
[1724716159829,2.44635766,63039.0,63038.0,0.00824]
[1724716161026,2.47435766,63039.0,63038.0,0.00824]
[1724716161228,2.46035766,63039.0,63038.0,0.00824]
[1724716161584,2.47435766,63039.0,63038.0,0.00824]
[1724716161940,2.46035766,63039.0,63038.0,0.00824]
[1724716162303,2.47435766,63039.0,63038.0,0.00824]
[1724716162913,2.46035766,63039.0,63038.0,0.00824]
[1724716163309,2.47435766,63039.0,63038.0,0.00824]
[1724716164406,2.46842698,63039.0,63038.0,0.00824]
[1724716164656,2.46842698,63039.0,63038.0,0.15554]
[1724716165236,2.46804065,63039.0,63038.0,0.15554]
[1724716165440,2.87803542,63039.0,63038.0,0.00824]
[1724716165632,3.2261996,63039.0,63038.0,0.00824]
[1724716166338,3.1899996,63039.0,63038.0,0.00824]
[1724716167070,1.74642871,63037.0,63036.0,0.00412241]
[1724716167273,2.52708304,63037.0,63036.0,0.00412241]
[1724716168369,2.54108304,63037.0,63036.0,0.00412241]
[1724716168582,2.56595216,63037.0,63036.0,0.00412241]
[1724716169250,2.57995216,63037.0,63036.0,0.00412241]
[1724716170305,2.89722516,63037.0,63036.0,0.00412241]
[1724716171285,2.87235604,63037.0,63036.0,0.00412241]
[1724716174125,2.86927383,63037.0,63036.0,0.00412241]
[1724716175038,2.86927383,63037.0,63036.0,0.06942241]
[1724716175289,2.86927383,63037.0,63036.0,0.06636582]
[1724716175863,2.89414287,63037.0,63036.0,0.06636582]
[1724716178936,2.89359937,63037.0,63036.0,0.06636582]
[1724716181339,2.86873033,63037.0,63036.0,0.06636582]
[1724716183247,2.86792117,63037.0,63036.0,0.09420353]
[1724716183454,2.55390686,63037.0,63036.0,0.09420353]
[1724716183666,2.54450231,63037.0,63036.0,0.09420353]
[1724716184042,2.38444307,63037.0,63036.0,0.09420353]
[1724716184408,2.54450231,63037.0,63036.0,0.09420353]
[1724716184857,2.38444307,63037.0,63036.0,0.09420353]
[1724716185084,2.38425216,63037.0,63036.0,0.09420353]
[1724716185709,2.54043017,63037.0,63036.0,0.09420353]
[1724716186725,2.54123933,63037.0,63036.0,0.09420353]
[1724716187124,2.54185788,63037.0,63036.0,0.09420353]
[1724716187934,2.56672697,63037.0,63036.0,0.09420353]
[1724716188388,2.56287017,63037.0,63036.0,0.09420353]
[1724716189061,2.56287017,63037.0,63036.0,0.09502753]
[1724716189261,2.56377657,63037.0,63036.0,0.09502753]
[1724716190187,2.88104957,63037.0,63036.0,0.09502753]
[1724716191170,2.85618048,63037.0,63036.0,0.09502753]
[1724716193197,2.85618048,63037.0,63036.0,0.0282435]
[1724716193399,2.85618048,63037.0,63036.0,0.000824]
[1724716193794,2.69284826,63037.0,63036.0,0.000824]
[1724716196160,2.69284826,63037.0,63036.0,0.140824]
[1724716197578,0.15945616,63033.0,63032.0,0.00824]
[1724716197813,1.07779977,63033.0,63032.0,0.00824]
[1724716198027,2.34697577,63033.0,63032.0,0.00824]
[1724716198364,2.66426977,63033.0,63032.0,0.00824]
[1724716198812,2.67826977,63033.0,63032.0,0.00824]
[1724716199653,2.66426977,63033.0,63032.0,0.00824]
[1724716199994,2.69226977,63033.0,63032.0,0.00824]
[1724716200210,2.67826977,63033.0,63032.0,0.00824]
[1724716200616,2.69226977,63033.0,63032.0,0.00824]
[1724716201715,3.01444362,63033.0,63032.0,0.00824]
[1724716205479,3.09294362,63033.0,63032.0,0.00824]
[1724716206424,1.858151,63028.0,63027.0,0.01845094]
[1724716206675,2.34711277,63028.0,63027.0,0.01845094]
[1724716206905,2.54556075,63028.0,63027.0,0.01845094]
[1724716207884,2.55956075,63028.0,63027.0,0.01845094]
[1724716208819,2.57356075,63028.0,63027.0,0.01845094]
[1724716210247,2.57356075,63028.0,63027.0,0.01345094]
[1724716211301,2.6102813,63028.0,63027.0,0.01345094]
[1724716212111,2.6102733,63028.0,63027.0,0.01345094]
[1724716213015,2.13534858,63028.0,63027.0,0.08935094]
[1724716213446,0.49594429,63028.0,63027.0,0.08954178]
[1724716213648,0.22631996,63028.0,63027.0,0.24571979]
[1724716213856,0.22631996,63028.0,63027.0,0.26954379]
[1724716213857,0.38497896,63028.0,63027.0,0.26954379]
[1724716214027,0.81376725,63028.0,63027.0,0.09017494]
[1724716214230,0.95633579,63028.0,63027.0,0.09017494]
[1724716214428,1.14195482,63028.0,63027.0,0.09017494]
[1724716214629,1.28452336,63028.0,63027.0,0.09017494]
[1724716215012,1.61584236,63028.0,63027.0,0.09017494]
[1724716215200,1.60184236,63028.0,63027.0,0.09017494]
[1724716215565,1.59484236,63028.0,63027.0,0.09017494]
[1724716215762,1.60384236,63028.0,63027.0,0.09017494]
[1724716216316,1.722448,63028.0,63027.0,0.09017494]
[1724716218031,1.61097871,63028.0,63027.0,0.09017494]
[1724716220386,1.92829771,63028.0,63027.0,0.09017494]
[1724716220559,1.61097871,63028.0,63027.0,0.09017494]
[1724716220995,1.92829771,63028.0,63027.0,0.09017494]
[1724716224289,2.08861703,63028.0,63027.0,0.09017494]
[1724716225345,1.92829771,63028.0,63027.0,0.09017494]
[1724716225540,2.07611282,63028.0,63027.0,0.09017494]
[1724716226516,1.75879382,63028.0,63027.0,0.09017494]
[1724716227170,2.07611282,63028.0,63027.0,0.09017494]
[1724716227381,1.91580422,63028.0,63027.0,0.09017494]
[1724716228124,1.59848522,63028.0,63027.0,0.09017494]
[1724716228660,1.91580422,63028.0,63027.0,0.09017494]
[1724716229863,2.03033622,63028.0,63027.0,0.09017494]
[1724716230505,2.19063584,63028.0,63027.0,0.09017494]
[1724716230707,1.87331684,63028.0,63027.0,0.09017494]
[1724716230881,1.71304327,63028.0,63027.0,0.09017494]
[1724716234795,1.71604327,63028.0,63027.0,0.09017494]
[1724716235139,1.71893761,63028.0,63027.0,0.09017494]
[1724716235760,1.71895577,63028.0,63027.0,0.09017494]
[1724716238012,1.83053239,63028.0,63027.0,0.09017494]
[1724716238344,1.83143879,63028.0,63027.0,0.09017494]
[1724716239531,1.83043879,63028.0,63027.0,0.09017494]
[1724716239696,1.83024783,63028.0,63027.0,0.09017494]
[1724716239908,1.83108562,63028.0,63027.0,0.09017494]
[1724716242046,1.83008562,63028.0,63027.0,0.09017494]
[1724716242288,1.83108562,63028.0,63027.0,0.09017494]
[1724716242463,1.83008562,63028.0,63027.0,0.09017494]
[1724716242667,1.83108562,63028.0,63027.0,0.09017494]
[1724716243010,1.83008562,63028.0,63027.0,0.09017494]
[1724716243205,1.83108562,63028.0,63027.0,0.09017494]
[1724716243647,1.83008562,63028.0,63027.0,0.09017494]
[1724716243894,1.83108562,63028.0,63027.0,0.09017494]
[1724716244509,1.80521705,63028.0,63027.0,0.09017494]
[1724716244683,1.80621705,63028.0,63027.0,0.09017494]
[1724716249766,1.80675358,63028.0,63027.0,0.09017494]
[1724716250525,1.80675358,63028.0,63027.0,0.09036578]
[1724716250526,1.37785796,63028.0,63027.0,0.09036578]
[1724716250735,1.11728309,63028.0,63027.0,0.09036578]
[1724716251545,1.43460209,63028.0,63027.0,0.09036578]
[1724716252543,1.5770697,63028.0,63027.0,0.09036578]
[1724716254110,1.2597507,63028.0,63027.0,0.09036578]
[1724716254310,1.37132732,63028.0,63027.0,0.09036578]
[1724716254915,1.68864632,63028.0,63027.0,0.09036578]
[1724716256285,1.80891973,63028.0,63027.0,0.09036578]
[1724716257103,1.80791973,63028.0,63027.0,0.000824]
[1724716257284,1.80891973,63028.0,63027.0,0.000824]
[1724716257489,1.80791973,63028.0,63027.0,0.000824]
[1724716257834,1.80891973,63028.0,63027.0,0.000824]
[1724716258405,1.96917911,63028.0,63027.0,0.000824]
[1724716258639,1.96817911,63028.0,63027.0,0.000824]
[1724716259244,2.28649811,63028.0,63027.0,0.000824]
[1724716259446,1.96917911,63028.0,63027.0,0.000824]
[1724716262614,1.96917911,63028.0,63027.0,0.064624]
[1724716262615,1.80891973,63028.0,63027.0,0.064624]
[1724716262816,1.69734311,63028.0,63027.0,0.064624]
[1724716263054,1.80891973,63028.0,63027.0,0.064624]
[1724716264350,1.80791973,63028.0,63027.0,0.141824]
[1724716264565,1.80891973,63028.0,63027.0,0.141824]
[1724716265870,1.80791973,63028.0,63027.0,0.141824]
[1724716266070,1.80891973,63028.0,63027.0,0.141824]
[1724716266521,1.69734311,63028.0,63027.0,0.141824]
[1724716266733,1.49160073,63028.0,63027.0,0.14201484]
[1724716267066,1.80891973,63028.0,63027.0,0.14201484]
[1724716272260,1.80890683,63028.0,63027.0,0.14201484]
[1724716275715,1.69733021,63028.0,63027.0,0.14201484]
[1724716275992,1.80890683,63028.0,63027.0,0.14201484]
[1724716281531,1.80790683,63028.0,63027.0,0.14201484]
[1724716281734,1.80890683,63028.0,63027.0,0.14201484]
[1724716282399,1.80790683,63028.0,63027.0,0.14201484]
[1724716282538,1.80890683,63028.0,63027.0,0.14201484]
[1724716283529,1.80890683,63028.0,63027.0,0.32119285]
[1724716283530,0.58390517,63028.0,63027.0,0.32119285]
[1724716283731,0.417322,63028.0,63027.0,0.47985485]
[1724716283955,0.202792,63028.0,63027.0,0.47985485]
[1724716284295,0.202792,63028.0,63027.0,0.79717885]
[1724716284296,0.1314384,63028.0,63027.0,0.79717885]
[1724716284523,0.1314384,63028.0,63027.0,0.32119285]
[1724716284725,0.1224384,63028.0,63027.0,0.47985485]
[1724716285127,0.1234384,63028.0,63027.0,0.47985485]
[1724716285501,0.1294384,63028.0,63027.0,0.32119285]
[1724716285896,0.4407574,63028.0,63027.0,0.32119285]
[1724716286101,1.305408,63028.0,63027.0,0.14201484]
[1724716286309,1.40219118,63028.0,63027.0,0.06581484]
[1724716286721,1.71851018,63028.0,63027.0,0.00101484]
[1724716286930,1.94963421,63028.0,63027.0,0.00101484]
[1724716287344,1.95163421,63028.0,63027.0,0.00601484]
[1724716287557,1.95063421,63028.0,63027.0,0.00301484]
[1724716287970,1.95163421,63028.0,63027.0,0.00301484]
[1724716288393,1.95170615,63028.0,63027.0,0.00101484]
[1724716288961,2.10021225,63028.0,63027.0,0.00101484]
[1724716289108,1.86111868,63028.0,63027.0,0.00101484]
[1724716289675,1.86911868,63028.0,63027.0,0.00101484]
[1724716291767,1.87104117,63028.0,63027.0,0.00101484]
[1724716293232,1.55372217,63028.0,63027.0,0.00101484]
[1724716301988,1.55372217,63028.0,63027.0,0.07661484]
[1724716302197,1.41121285,63028.0,63027.0,0.07661484]
[1724716306391,1.41676555,63028.0,63027.0,0.07661484]
[1724716310751,1.09944655,63028.0,63027.0,0.13821484]
[1724716311072,0.9237354,63028.0,63027.0,0.13821484]
[1724716311264,1.09981398,63028.0,63027.0,0.13821484]
[1724716312269,0.87740352,63028.0,63027.0,0.31739285]
[1724716312776,0.6064164,63028.0,63027.0,0.31739285]
[1724716314576,0.36024963,63028.0,63027.0,0.31739285]
[1724716314958,0.67756863,63028.0,63027.0,0.31739285]
[1724716317599,0.6064164,63028.0,63027.0,0.31739285]
[1724716317805,0.17786954,63028.0,63027.0,0.31739285]
[1724716318004,0.1304384,63028.0,63027.0,0.31739285]
[1724716318252,0.2890974,63028.0,63027.0,0.31739285]
[1724716318943,0.1304384,63028.0,63027.0,0.31739285]
[1724716319129,0.2890974,63028.0,63027.0,0.31739285]
[1724716320785,0.6064164,63028.0,63027.0,0.31739285]
[1724716321354,0.67755128,63028.0,63027.0,0.31739285]
[1724716322748,0.6064164,63028.0,63027.0,0.31739285]
[1724716324072,0.6064164,63028.0,63027.0,0.16121484]
[1724716324073,0.9237354,63028.0,63027.0,0.16121484]
[1724716330246,0.9237354,63028.0,63027.0,0.02401484]
[1724716330474,1.2410544,63028.0,63027.0,0.02401484]
[1724716330748,1.2410544,63028.0,63027.0,0.00101484]
[1724716330927,1.59152097,63028.0,63027.0,0.00101484]
[1724716331102,1.51132097,63028.0,63027.0,0.00101484]
[1724716331308,1.41647446,63028.0,63027.0,0.00101484]
[1724716331509,1.5350326,63028.0,63027.0,0.00101484]
[1724716332436,1.2410544,63028.0,63027.0,0.00101484]
[1724716332637,1.41384137,63028.0,63027.0,0.00101484]
[1724716334022,1.41332298,63028.0,63027.0,0.00101484]
[1724716334232,1.79304198,63028.0,63027.0,0.000824]
[1724716334404,2.1150209,63028.0,63027.0,0.000824]
[1724716335178,2.1090209,63028.0,63027.0,0.000824]
[1724716335409,1.6491019,63028.0,63027.0,0.142124]
[1724716335607,1.10200398,63028.0,63027.0,0.16531484]
[1724716336142,1.09300398,63028.0,63027.0,0.16531484]
[1724716336543,1.10400398,63028.0,63027.0,0.16531484]
[1724716336747,1.09300398,63028.0,63027.0,0.16531484]
[1724716337170,1.10100398,63028.0,63027.0,0.16531484]
[1724716337392,0.77168498,63028.0,63027.0,0.32149285]
[1724716337596,0.30570698,63028.0,63027.0,0.32149285]
[1724716337794,0.46436598,63028.0,63027.0,0.32149285]
[1724716337996,0.2920974,63028.0,63027.0,0.32149285]
[1724716338196,0.35323925,63028.0,63027.0,0.32149285]
[1724716338435,0.35923925,63028.0,63027.0,0.32149285]
[1724716340582,1.03431202,63028.0,63027.0,0.02401484]
[1724716340783,1.3141821,63028.0,63027.0,0.00101484]
[1724716341064,1.21933367,63028.0,63027.0,0.00101484]
[1724716343853,1.33785558,63028.0,63027.0,0.00101484]
[1724716345178,1.33785558,63028.0,63027.0,0.88792842]
[1724716345179,0.20058283,63028.0,63027.0,0.88792842]
[1724716345379,0.1294384,63028.0,63027.0,0.47885485]
[1724716345947,0.1154384,63028.0,63027.0,0.79617885]
[1724716346584,0.1234384,63028.0,63027.0,0.79617885]
[1724716347035,0.1154384,63028.0,63027.0,1.11350285]
[1724716347389,0.1154384,63028.0,63027.0,0.79617885]
[1724716347606,0.1164384,63028.0,63027.0,0.79617885]
[1724716347829,0.1224384,63028.0,63027.0,0.79617885]
[1724716348456,0.1164384,63028.0,63027.0,0.79617885]
[1724716348866,0.1174384,63028.0,63027.0,0.79917885]
[1724716349978,0.1174384,63028.0,63027.0,1.11650285]
[1724716350353,0.1164384,63028.0,63027.0,0.79917885]
[1724716351149,0.1174384,63028.0,63027.0,0.80017885]
[1724716351363,0.1164384,63028.0,63027.0,1.11750285]
[1724716351599,0.1164384,63028.0,63027.0,1.53482685]
[1724716351804,0.1174384,63028.0,63027.0,1.53582685]
[1724716352493,0.1174384,63028.0,63027.0,1.85315085]
[1724716352700,0.1174384,63028.0,63027.0,1.53582685]
[1724716353044,0.1174384,63028.0,63027.0,1.85315085]
[1724716353450,0.0009064,63036.0,63035.0,1.17488484]
[1724716353651,0.0009064,63036.0,63035.0,1.95972347]
[1724716354082,0.0009064,63036.0,63035.0,2.12668107]
[1724716354904,0.0009064,63036.0,63035.0,2.12768107]
[1724716354905,0.0019064,63036.0,63035.0,2.12768107]
[1724716355105,0.0019064,63036.0,63035.0,2.12668107]
[1724716355317,0.0029064,63036.0,63035.0,2.12868107]
[1724716355485,0.0039064,63036.0,63035.0,2.12968107]
[1724716357278,0.0039064,63036.0,63035.0,1.51616517]
[1724716357499,0.0039064,63036.0,63035.0,0.34247117]
[1724716357713,0.0039064,63036.0,63035.0,0.81839717]
[1724716357913,0.0039064,63036.0,63035.0,0.50111317]
[1724716358115,0.0039064,63036.0,63035.0,0.49911317]
[1724716358116,0.0029064,63036.0,63035.0,0.49911317]
[1724716358318,0.0009064,63036.0,63035.0,0.81539717]
[1724716358522,0.0019064,63036.0,63035.0,0.83139717]
[1724716359589,0.0009064,63036.0,63035.0,0.84239717]
[1724716360372,0.0009064,63036.0,63035.0,0.83839717]
[1724716360760,0.0019064,63036.0,63035.0,0.84539717]
[1724716361678,0.0009064,63036.0,63035.0,0.83839717]
[1724716361880,0.0029064,63036.0,63035.0,0.85239717]
[1724716362286,0.0029064,63036.0,63035.0,0.29967117]
[1724716362496,0.4788244,63036.0,63035.0,0.17036885]
[1724716362703,0.7951034,63036.0,63035.0,0.16436885]
[1724716362914,0.7951034,63036.0,63035.0,0.17336885]
[1724716362915,0.4788244,63036.0,63035.0,0.17336885]
[1724716363536,0.4778244,63036.0,63035.0,0.16536885]
[1724716363738,0.4778244,63036.0,63035.0,0.18836885]
[1724716363939,0.4788244,63036.0,63035.0,0.19636885]
[1724716364088,0.4778244,63036.0,63035.0,0.18836885]
[1724716364468,0.4768244,63036.0,63035.0,0.18036885]
[1724716364677,0.4768244,63036.0,63035.0,0.17936885]
[1724716364870,0.4778244,63036.0,63035.0,0.18536885]
[1724716365105,0.4788244,63036.0,63035.0,0.19336885]
[1724716365275,0.4778244,63036.0,63035.0,0.17936885]
[1724716365615,0.4778244,63036.0,63035.0,0.18136885]
[1724716366252,0.4778244,63036.0,63035.0,0.17936885]
[1724716367084,0.4778244,63036.0,63035.0,0.18136885]
[1724716367474,0.4778244,63036.0,63035.0,0.18236885]
[1724716367695,0.4768244,63036.0,63035.0,0.18136885]
[1724716368147,0.4768244,63036.0,63035.0,0.18236885]
[1724716368415,0.4768244,63036.0,63035.0,0.18036885]
[1724716368692,0.4768244,63036.0,63035.0,0.18236885]
[1724716368914,0.8589034,63036.0,63035.0,0.18236885]
[1724716369110,0.8589034,63036.0,63035.0,0.18036885]
[1724716369333,0.8589034,63036.0,63035.0,0.17936885]
[1724716369536,0.8589034,63036.0,63035.0,0.18136885]
[1724716370507,0.8589034,63036.0,63035.0,0.18236885]
[1724716375437,0.5416244,63036.0,63035.0,0.18236885]
[1724716375838,0.8589034,63036.0,63035.0,0.18236885]
[1724716379489,0.5416244,63036.0,63035.0,0.18236885]
[1724716380027,0.8589034,63036.0,63035.0,0.18236885]
[1724716391204,0.7941034,63036.0,63035.0,0.18236885]
[1724716393067,0.4768244,63036.0,63035.0,0.248389]
[1724716394140,0.7941034,63036.0,63035.0,0.248389]
[1724716394530,0.4768244,63036.0,63035.0,0.248389]
[1724716394885,0.7941034,63036.0,63035.0,0.248389]
[1724716395097,0.4768244,63036.0,63035.0,0.248389]
[1724716396095,0.7941034,63036.0,63035.0,0.248389]
[1724716396308,0.4768244,63036.0,63035.0,0.248389]
[1724716397603,0.7941034,63036.0,63035.0,0.248389]
[1724716397824,0.4768244,63036.0,63035.0,0.248389]
[1724716398908,0.7941034,63036.0,63035.0,0.248389]
[1724716403381,0.4768244,63036.0,63035.0,0.248389]
[1724716403785,0.7941034,63036.0,63035.0,0.248389]
[1724716405424,0.96809891,63036.0,63035.0,0.248389]
[1724716405763,1.99529005,63036.0,63035.0,0.06902015]
[1724716405986,2.09206213,63036.0,63035.0,0.06902015]
[1724716406670,2.09206213,63036.0,63035.0,0.06702015]
[1724716407075,2.09506213,63036.0,63035.0,0.06702015]
[1724716407275,2.09506213,63036.0,63035.0,0.06602015]
[1724716407478,2.10106213,63036.0,63035.0,0.06702015]
[1724716407704,2.19983354,63036.0,63035.0,0.06702015]
[1724716407907,2.16404918,63036.0,63035.0,0.06702015]
[1724716408114,2.17804918,63036.0,63035.0,0.06802015]
[1724716412395,2.17809101,63036.0,63035.0,0.06802015]
[1724716417425,2.17746991,63036.0,63035.0,0.06802015]
[1724716420703,1.91053008,63036.0,63035.0,0.06802015]
[1724716422247,1.91230382,63036.0,63035.0,0.06802015]
[1724716427022,2.18068225,63036.0,63035.0,0.06802015]
[1724716427208,2.17628412,63036.0,63035.0,0.06802015]
[1724716432136,2.17462734,63036.0,63035.0,0.06802015]
[1724716436990,2.17971561,63036.0,63035.0,0.06802015]
[1724716437508,2.33996231,63036.0,63035.0,0.06802015]
[1724716437907,2.17971561,63036.0,63035.0,0.06802015]
[1724716444226,2.65317262,63036.0,63035.0,0.06802015]
[1724716444470,2.75460033,63036.0,63035.0,0.06802015]
[1724716444673,2.75460033,63036.0,63035.0,0.00984756]
[1724716445276,2.72112304,63036.0,63035.0,0.00984756]
[1724716448262,2.74599043,63036.0,63035.0,0.00984756]
[1724716448897,3.06326943,63036.0,63035.0,5.6e-07]
[1724716449653,1.88325471,63029.0,63028.0,0.000824]
[1724716449840,0.476046,63019.0,63007.0,0.0753]
[1724716450051,1.69566713,63019.0,63007.0,0.0753]
[1724716450239,1.94662893,63019.0,63007.0,0.0753]
[1724716450440,2.58278464,63019.0,63007.0,0.0753]
[1724716450642,2.68278464,63019.0,63007.0,0.0753]
[1724716451041,2.68278464,63019.0,63018.0,0.0100974]
[1724716451541,2.68278464,63019.0,63018.0,0.0050974]
[1724716451744,2.71078464,63019.0,63018.0,0.0060974]
[1724716452173,2.69678464,63019.0,63018.0,0.0060974]
[1724716452376,2.71078464,63019.0,63018.0,0.0060974]
[1724716454156,2.85297929,63019.0,63018.0,0.0060974]
[1724716454780,2.69617206,63019.0,63018.0,0.0060974]
[1724716455519,3.01353606,63019.0,63018.0,0.0060974]
[1724716456476,3.0384088,63019.0,63018.0,0.0060974]
[1724716457174,1.99524552,63012.0,63005.0,0.005]
[1724716457422,2.66836406,63012.0,63005.0,0.005]
[1724716457759,2.69323849,63012.0,63005.0,0.005]
[1724716458372,2.70323849,63012.0,63005.0,0.005]
[1724716458667,2.71423849,63012.0,63005.0,0.005]
[1724716459707,1.88389271,63006.0,63005.0,0.005]
[1724716460044,2.3251079,63006.0,63005.0,0.005]
[1724716460688,0.0764,62998.0,62995.0,0.0070147]
[1724716460891,0.82030682,62998.0,62995.0,0.0070147]
[1724716461124,1.69710642,62998.0,62995.0,0.0070147]
[1724716461238,2.19099598,62998.0,62995.0,0.0070147]
[1724716461638,1.68479301,62998.0,62995.0,0.0070147]
[1724716461924,1.64013881,62998.0,62996.0,0.0625]
[1724716462302,1.65413881,62998.0,62996.0,0.0625]
[1724716462535,1.65413881,62998.0,62997.0,0.1753]
[1724716462536,1.22266881,62998.0,62997.0,0.1753]
[1724716462659,1.22266881,62998.0,62997.0,0.2378]
[1724716462861,1.23666881,62998.0,62997.0,0.2378]
[1724716463173,1.25066881,62998.0,62997.0,0.2378]
[1724716463572,1.23666881,62998.0,62997.0,0.2378]
[1724716463770,1.24866881,62998.0,62997.0,0.2378]
[1724716463971,1.137145,62998.0,62997.0,0.2378]
[1724716464359,1.19403159,62998.0,62997.0,0.2378]
[1724716464560,1.20803159,62998.0,62997.0,0.2378]
[1724716469383,1.137145,62998.0,62997.0,0.2378]
[1724716470403,0.819675,62998.0,62997.0,0.23799084]
[1724716472255,0.819675,62998.0,62997.0,0.23881484]
[1724716474271,0.81948401,62998.0,62997.0,0.23881484]
[1724716474672,1.13695401,62998.0,62997.0,0.238624]
[1724716474910,0.97841,62998.0,62997.0,0.238624]
[1724716475393,1.137145,62998.0,62997.0,0.238624]
[1724716476661,1.137145,62998.0,62997.0,0.176124]
[1724716480142,1.137145,62998.0,62997.0,0.076124]
[1724716484786,1.199645,62998.0,62997.0,0.000824]
[1724716486022,1.30784105,62998.0,62997.0,0.000824]
[1724716487071,2.14317415,62998.0,62997.0,0.000824]
[1724716487293,2.02506945,62998.0,62997.0,0.000824]
[1724716487503,2.12649716,62998.0,62997.0,0.000824]
[1724716487681,2.66647501,62998.0,62997.0,0.000824]
[1724716487921,2.49834333,62998.0,62997.0,0.000824]
[1724716488334,2.18087333,62998.0,62997.0,0.000824]
[1724716488533,2.19487333,62998.0,62997.0,0.000824]
[1724716488682,2.12503635,62998.0,62997.0,0.000824]
[1724716488860,2.09560864,62998.0,62997.0,0.000824]
[1724716489071,2.10960864,62998.0,62997.0,0.000824]
[1724716490283,2.12360864,62998.0,62997.0,0.000824]
[1724716490732,2.04320864,62998.0,62997.0,0.000824]
[1724716490932,2.05863635,62998.0,62997.0,0.000824]
[1724716491425,2.04463635,62998.0,62997.0,0.000824]
[1724716491835,2.05863635,62998.0,62997.0,0.000824]
[1724716492585,1.79283458,62998.0,62997.0,0.000824]